Cogmind - Beta 13 *** ADVENTURER MODE // 2024.06.28 @ 15:48:45 Player: Kurtz Result: Destroyed by as-87146 with Assembled Heavy Rifle Performance ------------- Evolutions (0) 0 Regions Visited (2) 400 Robots Destroyed (4) 20 Value Destroyed (98) 98 Prototype IDs (3) 60 Alien Tech Used (0) 0 Bonus (0) 0 TOTAL SCORE: 578 Bonus ------- None Cogmind --------- Core Integrity 0/250 Matter 300/300 Energy 100/100 System Corruption 0% Temperature Cool (0) Movement Core (350) Ox6 Location -10/Mines Parts ------- > --- POWER (1) -------- (None) > --- PROPULSION (2) --- (None) > --- UTILITY (2) ------ Large Storage Unit Signal Interpreter > --- WEAPON (2) ------- (None) > --- INVENTORY (15) --- Light Treads Light Treads Compact Wheel Medium Storage Unit Medium Storage Unit Trap Scanner Advanced Targeting Computer Light Cannon Grenade Launcher Grenade Launcher Mining Laser Hammer Peak State ------------ > --- POWER ------------ Light Ion Engine > --- PROPULSION ------- Wheel Compact Wheel > --- UTILITY ---------- Large Storage Unit Signal Interpreter > --- WEAPON ----------- Medium Laser Assault Cannon > --- INVENTORY -------- Light Treads Light Treads Compact Wheel Medium Storage Unit Medium Storage Unit Trap Scanner Advanced Targeting Computer Light Cannon Grenade Launcher Grenade Launcher Mining Laser Hammer [Rating: 10] Favorites ----------- Power Light Ion Engine Engine Light Ion Engine Propulsion Compact Wheel Wheel Compact Wheel Utility Signal Interpreter Storage Large Storage Unit Processor Signal Interpreter Weapon Assault Rifle Energy Gun Medium Laser Ballistic Gun Assault Rifle Ballistic Cannon Light Cannon Build | -11 -10 -10 ------- Run | Yrd Mat Min Slots Evolved . | . . . Power . | . . . Propulsion . | . . . Utility . | . . . Weapon . | . . . Parts Attached 14 | 6 7 1 Power 1 | 1 . . Engine 1 | 1 . . Core . | . . . Reactor . | . . . Propulsion 4 | 2 2 . Treads . | . . . Leg . | . . . Wheel 4 | 2 2 . Hover . | . . . Flight . | . . . Utility 4 | 1 3 . Device . | . . . Storage 3 | 1 2 . Processor 1 | . 1 . Hackware . | . . . Protection . | . . . Artifact . | . . . Weapon 5 | 2 2 1 Energy Gun 1 | . 1 . Energy Cannon . | . . . Ballistic Gun 2 | 2 . . Ballistic Cannon 2 | . 1 1 Launcher . | . . . Special Weapon . | . . . Impact Weapon . | . . . Slashing Weapon . | . . . Piercing Weapon . | . . . Special Melee Weapon . | . . . Unidentified Prototypes . | . . . Parts Lost 5 | . . 5 Power 1 | . . 1 Propulsion 2 | . . 2 Utility . | . . . Weapon 2 | . . 2 Highest Loss Streak 5 | . . 5 To Critical Strikes . | . . . Average Slot Usage (%) 98 | . 98 97 Engine 13 | . 14 13 Wheel 27 | . 27 27 Storage 16 | . 18 14 Processor 10 | . 9 14 Energy Gun 5 | . 1 13 Ballistic Gun 12 | . 17 . Ballistic Cannon 10 | . 8 13 Naked Turns . | . . . Heaviest Build 30 | 12 28 30 Greatest Support 26 | 26 26 26 Greatest Overweight (x) 8 | 2 1 8 Average Overweight (x) . | . . 1 Largest Inventory Capacity 15 | 8 15 15 Average Capacity 13 | 6 12 15 Most Carried 12 | . 10 12 Average Carried 7 | . 5 11 Final Capacity 15 | 8 15 15 Final Carried 12 | . 10 12 Class Distribution -------------------- 100% | Mutant Dominant Class ---------------- Mutant | -10/Materials Mutant | -10/Mines Resources | -11 -10 -10 ----------- Run | Yrd Mat Min Matter Collected 487 | 213 229 45 Remotely . | . . . Salvage Created 149 | . 97 52 Parts 6 | . 6 . Haulers Intercepted . | . . . Recyclers Shooed 1 | . 1 . Parts Field Recycled . | . . . Retrieved Matter . | . . . Parts Self-Destructed . | . . . Prevented . | . . . Kills | -11 -10 -10 ------- Run | Yrd Mat Min Combat Hostiles Destroyed 7 | . 2 5 Guns 2 | . 2 . Cannons 5 | . . 5 Classes Destroyed 4 | . 3 1 Worker 1 | . 1 . Watcher 1 | . 1 . Grunt 2 | . 2 . Assembled 5 | . . 5 Best Kill Streak 5 | . 2 5 Combat Bots Only 5 | . 2 5 Max Kills in Single Turn 1 | . 1 1 Gunslinging . | . . . Exploded . | . . . Melee . | . . . Uniques/NPCs Destroyed . | . . . Combat | -11 -10 -10 -------- Run | Yrd Mat Min Hostile Shots Fired 64 | . 18 46 Missed 9 | . 3 6 Damage Taken 794 | . 158 636 Core 255 | . 35 220 Absorbed by Shields . | . . . Ignored by Resistances 229 | . 46 183 Regen/Repaired (Parts) 34 | . 34 . Core Remaining (%) 100 | 100 . . Volleys Fired 28 | . 19 9 Largest 2 | . 2 2 Hottest 94 | . 55 94 Shots Fired 56 | . 38 18 Gun 39 | . 30 9 Cannon 17 | . 8 9 Launcher . | . . . Special . | . . . Kinetic 47 | . 38 9 Thermal 9 | . . 9 Explosive . | . . . Electromagnetic . | . . . Robot Hit Streak 21 | . 21 7 Robot Miss Streak 3 | . 2 3 Penetration Max . | . . . Secondary Targets . | . . . Shots Hit Robots 43 | . 31 12 Core Hits 12 | . 7 5 Critical Kills . | . . . Critical Parts Destroyed . | . . . Critical Strikes . | . . . Melee Attacks . | . . . Impact . | . . . Slashing . | . . . Piercing . | . . . Sneak Attacks . | . . . Combat Hostiles . | . . . Follow-up Attacks . | . . . Damage Inflicted 648 | . 423 225 Guns 368 | . 317 51 Cannons 278 | . 106 172 Explosions . | . . . Melee . | . . . Ramming 2 | . . 2 Kinetic 595 | . 423 172 Thermal 51 | . . 51 Explosive . | . . . Electromagnetic . | . . . Impact . | . . . Slashing . | . . . Piercing . | . . . Highest Corruption . | . . . Average Corruption . | . . . Corruption Purged . | . . . Corruption Blocked . | . . . Overload Shots . | . . . Overflow Damage 25 | . 25 . Projectiles 25 | . 25 . Explosions . | . . . Melee . | . . . Knockbacks 6 | . 3 3 Impact . | . . . Kinetic 5 | . 3 2 Secondary 1 | . . 1 Self-Inflicted Damage 1 | . . 1 Shots . | . . . Rammed 1 | . . 1 Targets Rammed 1 | . . 1 Kicked . | . . . Crushed . | . . . Highest Temperature 309 | . 15 309 Average Temperature 116 | . 4 149 Received Heat Transfer 223 | . 123 100 Siege Activations . | . . . Robots Corrupted . | . . . Combat Hostiles . | . . . Parts Fried . | . . . Impact Corruptions . | . . . Robots Melted . | . . . Combat Hostiles . | . . . Parts Melted . | . . . Heat Transferred 148 | . . 148 Parts Sabotaged . | . . . Parts Stolen . | . . . Parts Stripped . | . . . Power Chain Reactions . | . . . Alert | -11 -10 -10 ------- Run | Yrd Mat Min Peak Influence 101 | . 101 5 Initial 4 | . . 4 Average 28 | . 40 3 Maximum Alert Level . | . . . Low Security (%) 100 | 100 100 100 Level 1 . | . . . Level 2 . | . . . Level 3 . | . . . Level 4 . | . . . Level 5 . | . . . High Security . | . . . Max Security . | . . . Squads Dispatched . | . . . Investigation . | . . . Extermination . | . . . Reinforcement . | . . . Assault . | . . . Garrison . | . . . Intercept . | . . . Searches Triggered . | . . . Construction Impeded . | . . . Haulers Reinforced . | . . . Active Scanning Responses . | . . . Cargo Convoy Interrupts . | . . . Stealth | -11 -10 -10 --------- Run | Yrd Mat Min Distress Signals 1 | . 1 . Communications Jammed . | . . . Distress Signals . | . . . Times Spotted 22 | . 5 17 Peak Tracking Total 15 | . 2 15 Tactical Retreats 1 | . . 1 Traps | -11 -10 -10 ------- Run | Yrd Mat Min Traps Triggered 1 | . . 1 Indirectly . | . . . Trap Hack Attempts . | . . . Triggered . | . . . Disarmed . | . . . Reprogrammed . | . . . Reused . | . . . Traps Extracted . | . . . Installed . | . . . Triggered . | . . . Machines | -11 -10 -10 ---------- Run | Yrd Mat Min Machines Disabled . | . . . Max in Single Turn . | . . . Machines Repaired . | . . . Machines Dismantled . | . . . Machines Sabotaged . | . . . Overloaded Fab Kills . | . . . Hacking | -11 -10 -10 --------- Run | Yrd Mat Min Machines Accessed 9 | . 8 1 Terminals 7 | . 7 . Fabricators . | . . . Repair Stations 1 | . 1 . Recycling Units . | . . . Scanalyzers . | . . . Garrison Access . | . . . Total Hacks 15 | . 14 1 Successful 12 | . 11 1 Failed 3 | . 3 . Catastrophic . | . . . Database Lockouts . | . . . Manual . | . . . Terminals 12 | . 12 . Fabricators . | . . . Repair Stations 2 | . 2 . Recycling Units . | . . . Scanalyzers . | . . . Garrison Access . | . . . Terminal Hacks 10 | . 9 1 Prototype ID Bank 2 | . 2 . Open Door 1 | . . 1 Locate Traps 7 | . 7 . Fabricator Hacks . | . . . Repair Station Hacks 2 | . 2 . Scan Component 1 | . 1 . Repair 1 | . 1 . Recycling Unit Hacks . | . . . Scanalyzer . | . . . Garrison Access Hacks . | . . . Unauthorized Hacks . | . . . Terminals . | . . . Fabricators . | . . . Repair Stations . | . . . Recycling Units . | . . . Scanalyzers . | . . . Garrison Access . | . . . Data Cores Recovered . | . . . Used . | . . . Hacking Detections 2 | . 2 . Full Trace Events . | . . . Feedback Events . | . . . Feedback Blocked . | . . . Robot Schematics Acquired . | . . . Robots Built . | . . . Authchips . | . . . Time . | . . . Total Robot Build Rating . | . . . Part Schematics Acquired . | . . . Parts Built . | . . . Authchips . | . . . Time . | . . . Total Part Build Rating . | . . . Parts Repaired 1 | . 1 . Time 26 | . 26 . Parts Recycled . | . . . Recycled Matter . | . . . Retrieved Matter . | . . . Retrieved Components . | . . . Parts Scanalyzed . | . . . Part Schematics Acquired . | . . . Parts Damaged . | . . . Bothacking | -11 -10 -10 ------------ Run | Yrd Mat Min Used RIF Installer . | . . . Robots Hacked . | . . . Non-combat . | . . . Combat . | . . . Robot Hacks Applied . | . . . Relay Couplers Released . | . . . Fabnet Peak Effective % . | . . . Robots Rewired . | . . . Allies Hacked . | . . . Hacks Repelled . | . . . Allies | -11 -10 -10 -------- Run | Yrd Mat Min Total Allies . | . . . Largest Group . | . . . Highest-Rated Group . | . . . Highest-Rated Ally . | . . . Total Orders . | . . . Ally Attacks . | . . . Total Damage . | . . . Kills . | . . . Allies Corrupted . | . . . Allies Melted . | . . . Intel | -11 -10 -10 ------- Run | Yrd Mat Min Robot Analysis Total . | . . . Derelict Logs Recovered . | . . . Drone Launches . | . . . Drone Recoveries . | . . . Exploration | -11 -10 -10 ------------- Run | Yrd Mat Min Turns Passed 1056 | 47 709 300 Spaces Moved 842 | 44 612 186 Core 20 | 16 . 4 Treads . | . . . Legs . | . . . Wheels 822 | 28 612 182 Hover . | . . . Flight . | . . . Fastest Speed 50 | 50 90 105 Average Speed 101 | 86 99 110 Slowest Speed 450 | 150 115 450 Overloaded Moves . | . . . Propulsion Burnouts . | . . . Robots Hopped . | . . . Cave-ins Triggered . | . . . Exploration Rate (%) 44 | 4 94 36 Regions Visited 2 Branch Regions 1 Pre-discovered Areas . | . . . Known Exits Taken 1 | . 1 . Unknown Exits Taken 1 | 1 . . Scrap Searched 2 | . . 2 Spaces Dug . | . . . Terrain Destroyed 1 | . . 1 Melee . | . . . Projectile 1 | . . 1 AOE . | . . . Terrain Rammed . | . . . Walls Destroyed . | . . . Machines Disabled . | . . . Actions | -11 -10 -10 --------- Run | Yrd Mat Min Total 985 | 49 674 262 Wait 85 | . 23 62 Move 840 | 43 611 186 Hop . | . . . Pick Up 13 | . 11 2 Fast Attach 8 | 6 2 . Attach 3 | . 3 . Detach . | . . . Swap 3 | . 2 1 Drop 4 | . 3 1 Fire 28 | . 19 9 Melee . | . . . Ram 1 | . . 1 Kick . | . . . Crush . | . . . Escape Stasis . | . . . Rewire . | . . . Trap . | . . . Miscellaneous . | . . . Route ------- -11/Scrapyard -10/Materials (discovered 3 exits: *Mat x2 / *Min) -10/Mines (discovered 1 exit: *Mat) History --------- Turn | Location | Event 11 | -11/Scrapyard | Discovered new exit (range 16) 48 | -11/Scrapyard | Entered Materials 275 | -10/Materials | Repaired Wheel 326 | -10/Materials | Build established: Mutant 387 | -10/Materials | Discovered new exit (range 3) 389 | -10/Materials | Identified exit to Materials 596 | -10/Materials | Discovered exit to Materials (range 7) 718 | -10/Materials | Discovered new exit (range 9) 726 | -10/Materials | Identified exit to Mines 757 | -10/Materials | Entered Mines 762 | -10/Mines | Met a Derelict who couldn't figure out how to use a Trap Extractor 820 | -10/Mines | Met a Derelict bent on vengeance 849 | -10/Mines | Discovered exit to Materials (range 6) 995 | -10/Mines | Assembled infested the area 1031 | -10/Mines | Core integrity fell below 50% 1050 | -10/Mines | Core integrity fell below 20% 1057 | -10/Mines | Destroyed by as-87146 with Assembled Heavy Rifle Last Messages --------------- 01035_ as-41405 knocked back. 01035_ as-51577 destroyed. 01036_ Acquired 12 matter. 01038_ D-53 Grenadier knocked back. 01038_ Lgt. Ion Engine destroyed. 01039_ as-80737 destroyed. 01039_ as-41405 destroyed. 01040_ as-73373 destroyed. 01040_ Com. Wheel destroyed. 01041_ as-81036 destroyed. 01041_ as-77471 destroyed. 01041_ as-82554 destroyed. 01042_ Wheel destroyed. 01043_ The unstable cave ceiling collapses. 01043_ Assault Cannon destroyed. 01044_ Med. Laser destroyed. 01044_ D-53 Grenadier destroyed. 01049_ as-63953 destroyed. 01050_ The unstable cave ceiling collapses. 01056_ U-05 Engineer destroyed. Map ----- +----------------------------------------------------+ | ?????????????????????????????????????????????????? | | ?????????????????????????????????????????????????? | | ?????????????????????????????????????????????????? | | ?????????????????????????????????????????????????? | | ?????????????????????????????????????????????????? | | ?????????????????????????????????????????????????? | | ?????????????????????????????????????????????????? | | ?????????????????????????????????????????????????? | | ?????????????????????????????????????????????????? | | ?????????????????????????????????????????????????? | | ?????????????????????????????????????????????????? | | ?????????????????????????????????????????????????? | | ?????????????????????????????????????????????????? | | ?????????????????????????????????????????????????? | | ?????????????????????????????????????????????????? | | ?????????????????????????????????????????????????? | | ?????????????????????????????????????????????????? | | ?????????????????????????????????????????????????? | | ????????????????#???????###??##??????????????????? | | ????????????????# ?????## ## ######?????????????? | | ?????????????????? #??## # #?????????????? | | ??????????????????? ?# #?????????????? | | ????????????????????# #* ## ##????????????? | | ????????????????????#|%% a= #????????????? | | ????????????????????##= ## #????????????? | | ?????????????????????# @ # #????????????? | | ?????????????????????## !#???????##???? | | ??????????????????????# ####%|#?????? #??? | | ????????????????????#### ###??# #????? #?? | | ????????????????????# ###??### ##??? #?? | | ????????????????????# #####???## ##?# #??? | | ????????????????????# #???????# ## #???? | | ????????????????????# #???????# #???? | | ????????????????????# #???????# #???? | | ???????????????????## ###?????## ##???? | | ??????????????????## ###????# ##????? | | ??????????????????# ##??## ##?????? | | ?????????????????## #??# #??????? | | ????????????????## #??# #??????? | | ??????????????### ## ##??# * #??????? | | ????????????### #######???# =%! #??????? | | ???????????## ##?????????# ##??????? | | ?????????### ##??????????# #???????? | | ????????## ##??????????? % #??????? | | ???????## ####???????????# ### ! #?????? | | ???????# ##??????????????####???##%= ????? | | ???????# ##????????????????????????# ???? | | ???????# ##????????????????????????? ??? | | ???????# ##????????????????????????? ???? | | ???????# #????????????????????????? #???? | +----------------------------------------------------+ Best States ------------- Heat Dissipation 25 Energy Generation 10 Energy Capacity 125 Matter Stores 300 Matter Capacity 300 Sight Range 16 Terrain Scan Density 10 Resistance: KI 20 Resistance: TH 20 Resistance: EX 20 Resistance: EM 20 Resistance: I 20 Resistance: S 20 Resistance: P 20 Evasion (%) 42 Offensive Hacking 10 Item Schematics ----------------- None Robot Schematics ------------------ None Fabricated ------------ Nothing Alien Tech Used ----------------- None Achievements -------------- None Challenges ------------ None Game ------ Seed BehemothEfficiencyRedirector Manual? 0 Play Time 00:13:48 Cumulative 467.7 hours Start 2024.06.28 @ 15:35:10 End 2024.06.28 @ 15:48:45 Sessions 1 Manual Loads 0 Difficulty Adventurer Special Mode None Game No. 54 Rogue 1 Adventurer 51 Explorer 2 Win Type - Total 3 Types 2/0/0/1/0/0/0/0/0 Lore% 54 Gallery% 45 Achievement% 59 Wizard Run 0 Options --------- Layout 2 ASCII 0 Keyboard 0 Movement Numpad Keybinds 0 Fullscreen 1 Font 32/SmallcapsGlow Map View 77x44 Zoom Use 0% Tactical HUD 1 Map Filters NONE Filters NONE Steam 1 RUN: 7677aca0-d2ad-46fd-8eed-b5ffd5e85964